bitfinex/quotes_SOLUSD_20240603
["timestamp","ask_amount","ask_price","bid_price","bid_amount"]
[1717413267735,9.2998,165.19,165.16,36.31]
[1717413267946,7.06,165.17,165.14,38.5505]
[1717413268121,7.06,165.17,165.15,45.0]
[1717413268716,2.2398,165.19,165.15,81.31]
[1717413268935,7.06,165.19,165.15,105.1288]
[1717413269125,2.2396,165.21,165.16,2.2401]
[1717413269332,7.06,165.19,165.16,2.2401]
[1717413272449,2.2396,165.21,165.16,2.2401]
[1717413272632,7.06,165.19,165.16,60.8993]
[1717413273233,2.2396,165.21,165.16,60.8993]
[1717413273445,2.2396,165.21,165.17,81.31]
[1717413273623,7.06,165.19,165.17,81.31]
[1717413273823,2.2396,165.21,165.17,97.8054]
[1717413274055,7.06,165.2,165.17,104.09]
[1717413274849,2.2394,165.22,165.17,104.09]
[1717413275148,7.06,165.21,165.17,104.09]
[1717413275547,2.2394,165.22,165.17,104.09]
[1717413275751,7.06,165.21,165.17,104.09]
[1717413275921,2.2394,165.22,165.17,104.09]
[1717413276124,7.06,165.21,165.17,104.09]
[1717413278046,7.06,165.19,165.17,97.8054]
[1717413280157,7.06,165.18,165.14,36.35]
[1717413280463,7.06,165.16,165.14,36.35]
[1717413281154,7.06,165.16,165.14,52.5914]
[1717413281765,7.06,165.17,165.14,52.5914]
[1717413283465,7.06,165.17,165.14,54.8319]
[1717413284942,7.06,165.17,165.15,81.35]
[1717413285155,2.2397,165.2,165.15,81.35]
[1717413285360,7.06,165.18,165.15,81.35]
[1717413286534,7.06,165.17,165.15,81.35]
[1717413288754,7.06,165.16,165.12,36.35]
[1717413289058,7.06,165.13,165.12,36.35]
[1717413289656,7.06,165.13,165.11,2.2408]
[1717413289861,7.06,165.14,165.11,38.5908]
[1717413291864,7.06,165.14,165.11,2.2408]
[1717413292037,7.06,165.14,165.12,2.2407]
[1717413294676,7.06,165.13,165.11,81.35]
[1717413296558,7.06,165.13,165.11,83.5909]
[1717413299254,2.2401,165.17,165.11,83.5909]
[1717413299456,7.06,165.13,165.11,83.5909]
[1717413299874,2.2401,165.17,165.11,83.5909]
[1717413300066,7.06,165.13,165.12,2.2407]
[1717413300590,7.06,165.14,165.12,2.2407]
[1717413301789,7.06,165.14,165.11,83.5908]
[1717413302790,2.2401,165.17,165.11,83.5908]
[1717413303102,7.06,165.14,165.11,83.5908]
[1717413308093,2.2401,165.17,165.11,83.5908]
[1717413308396,7.06,165.14,165.11,83.5908]
[1717413308784,7.06,165.13,165.11,83.5908]
[1717413309173,7.06,165.13,165.11,2.2408]
[1717413309374,7.06,165.12,165.09,38.5911]
[1717413309586,7.06,165.11,165.09,36.35]
[1717413309893,7.06,165.11,165.09,38.5911]
[1717413310277,7.06,165.11,165.09,2.2411]
[1717413311688,7.06,165.1,165.08,83.5912]
[1717413312190,7.06,165.1,165.08,36.35]
[1717413312391,7.06,165.09,165.07,2.2414]
[1717413312593,7.06,165.09,165.06,38.5916]
[1717413312895,7.06,165.08,165.06,38.5916]
[1717413313097,7.06,165.08,165.06,36.35]
[1717413313302,7.06,165.08,165.04,15.3866]
[1717413313303,7.06,165.08,165.05,38.5917]
[1717413314292,7.06,165.08,165.06,45.0]
[1717413318999,7.06,165.08,165.06,47.2415]
[1717413323014,7.06,165.07,165.05,2.2417]
[1717413323191,7.06,165.07,165.05,38.5917]
[1717413324313,2.2409,165.11,165.05,38.5917]
[1717413324514,2.2409,165.11,165.06,2.2416]
[1717413326818,28.24,165.12,165.05,36.35]
[1717413327796,2.2411,165.1,165.05,38.5917]
[1717413328417,2.2409,165.11,165.05,38.5917]
[1717413333923,2.2408,165.12,165.07,2.2414]
[1717413334402,7.06,165.1,165.07,2.2414]
[1717413334918,7.06,165.09,165.07,2.2414]
[1717413335112,7.06,165.08,165.07,2.2414]
[1717413335309,7.06,165.08,165.06,47.2415]
[1717413336119,7.06,165.07,165.05,2.2417]
[1717413337116,7.06,165.07,165.02,8.9683]
[1717413337117,7.06,165.06,165.02,2.242]
[1717413337323,7.06,165.04,165.01,22.2422]
[1717413337623,7.06,165.04,165.02,2.2421]
[1717413338918,7.06,165.04,165.03,2.242]
[1717413342719,2.2412,165.09,165.04,2.2418]
[1717413343021,7.06,165.05,165.04,2.2418]
[1717413345608,7.06,165.05,165.03,2.2419]
[1717413347234,7.06,165.05,165.04,2.2418]
[1717413348929,2.2412,165.09,165.04,2.2418]
[1717413349128,7.06,165.06,165.04,2.2418]
[1717413349327,7.06,165.06,165.05,2.2417]
[1717413349624,7.06,165.07,165.02,103.6812]
[1717413350708,7.06,165.07,165.04,2.2417]
[1717413353534,7.06,165.07,165.03,2.2419]
[1717413353713,7.06,165.06,165.03,2.2419]
[1717413356713,7.06,165.04,165.03,2.2419]
[1717413358011,7.06,165.04,165.03,47.2419]
[1717413359232,7.06,165.05,165.03,47.2419]
[1717413359841,2.2413,165.08,165.04,2.2418]
[1717413360029,7.06,165.05,165.04,2.2418]
[1717413360418,7.06,165.06,165.04,2.2418]
[1717413361442,7.06,165.06,165.03,47.242]
[1717413361633,7.06,165.04,165.03,2.242]
[1717413361828,7.06,165.04,164.99,36.35]
[1717413362031,7.06,165.01,165.0,2.2424]
[1717413363018,7.06,165.02,165.0,2.2424]
[1717413363923,7.06,165.02,165.0,47.2424]
[1717413364242,2.2416,165.06,165.01,2.2422]
[1717413364547,7.06,165.04,165.01,47.2422]
[1717413364724,7.06,165.03,165.01,47.2422]
[1717413365725,7.06,165.02,164.97,40.8356]
[1717413365927,7.06,165.02,164.99,2.2425]
[1717413366125,7.06,165.02,165.0,2.2423]
[1717413368250,7.06,165.01,165.0,2.2423]
[1717413371152,7.06,165.02,165.0,2.2423]
[1717413372951,2.2418,165.05,165.0,2.2423]
[1717413373244,7.06,165.02,165.0,2.2423]
[1717413374050,7.06,165.01,165.0,2.2423]
[1717413380336,8.2511,165.07,164.99,45.0]
[1717413380540,7.06,165.02,164.99,45.0]
[1717413380854,7.06,165.02,165.01,2.2422]
[1717413382028,7.06,165.02,165.0,2.2423]
[1717413382444,7.06,165.01,164.99,47.2425]
[1717413382642,7.06,165.01,164.99,2.2425]
[1717413383248,7.06,165.01,165.0,2.2424]
[1717413383828,7.06,165.01,164.92,36.35]
[1717413384030,7.06,165.04,164.95,2.2429]
[1717413384031,7.06,164.96,164.95,2.2429]
[1717413387444,2.2421,165.02,164.96,2.2428]
[1717413387645,7.06,164.97,164.96,2.2428]
[1717413390269,28.24,165.04,164.97,2.2428]
[1717413390270,2.2421,165.02,164.97,2.2428]
[1717413390474,7.06,164.98,164.97,2.2428]
[1717413390845,7.06,164.98,164.96,2.2429]
[1717413391066,7.06,164.98,164.97,2.2428]
[1717413391245,7.06,164.98,164.96,2.2429]
[1717413391446,7.06,164.97,164.96,2.2429]
[1717413391646,2.2422,165.02,164.97,2.2428]
[1717413391846,7.06,164.99,164.97,2.2428]
[1717413392272,2.2422,165.02,164.97,2.2428]
[1717413392471,7.06,164.99,164.97,2.2428]
[1717413393969,7.06,164.98,164.97,2.2428]
[1717413399875,2.2423,165.01,164.96,2.2429]
[1717413400247,7.06,164.98,164.96,2.2429]
[1717413400759,7.06,164.98,164.97,2.2428]
[1717413401385,7.06,164.98,164.96,2.2429]
[1717413401881,7.06,164.98,164.95,2.243]
[1717413402060,7.06,164.97,164.95,2.243]
[1717413402449,7.06,164.96,164.94,45.0]
[1717413402691,7.06,164.95,164.94,2.2432]
[1717413404495,7.06,164.96,164.95,2.2431]
[1717413405600,7.06,164.96,164.94,2.2431]
[1717413405956,2.2425,164.99,164.94,2.2431]
[1717413405957,7.06,164.95,164.94,2.2431]
[1717413408081,7.06,164.95,164.93,2.2433]
[1717413408268,7.06,164.94,164.93,2.2433]
[1717413408460,7.06,164.95,164.93,2.2433]
[1717413408661,7.06,164.95,164.94,2.2432]
[1717413410280,7.06,164.95,164.93,2.2433]
[1717413410469,2.2434,164.93,164.87,36.35]
[1717413410801,7.06,164.94,164.87,36.35]
[1717413410802,2.2433,164.94,164.89,2.2439]
[1717413411482,7.06,164.9,164.89,2.2439]
[1717413412264,7.06,164.9,164.82,11.2238]
[1717413412469,2.2435,164.92,164.87,2.2441]
[1717413412664,7.06,164.88,164.87,2.2441]
[1717413414082,7.06,164.88,164.86,2.2441]
[1717413414373,8.5324,164.92,164.86,2.2441]
[1717413414590,8.5324,164.92,164.87,2.2441]
[1717413414591,7.06,164.88,164.87,2.2441]
[1717413417770,2.2433,164.93,164.88,2.244]
[1717413418098,7.06,164.9,164.88,2.244]
[1717413418797,7.06,164.89,164.87,2.2441]
[1717413422217,34.3263,164.96,164.86,36.35]
[1717413422381,6.0863,164.96,164.89,2.2438]
[1717413422580,7.06,164.93,164.92,2.2435]
[1717413423074,7.06,164.94,164.92,2.2435]
[1717413424797,7.06,164.94,164.91,2.2436]
[1717413425321,7.06,164.94,164.92,2.2434]
[1717413430419,7.06,164.94,164.91,2.2435]
[1717413430596,2.2431,164.95,164.9,47.2437]
[1717413430911,17.4038,165.0,164.9,2.2437]
[1717413430912,7.06,164.91,164.9,2.2437]
[1717413431155,7.06,164.91,164.89,2.2438]
[1717413431297,7.06,164.9,164.89,2.2438]
[1717413432694,7.06,164.9,164.86,40.8386]
[1717413432695,7.06,164.9,164.88,2.244]
[1717413433197,2.2432,164.94,164.89,2.2439]
[1717413433404,7.06,164.9,164.89,2.2439]
[1717413443147,7.06,164.9,164.87,2.244]
[1717413443326,7.06,164.9,164.84,4.4891]
[1717413443658,7.06,164.86,164.83,23.2155]
[1717413443948,7.06,164.86,164.81,15.7142]
[1717413443949,7.06,164.86,164.84,2.2445]
[1717413444154,7.06,164.85,164.84,2.2445]
[1717413445439,7.06,164.85,164.83,2.2447]
[1717413445745,7.06,164.84,164.83,2.2447]
[1717413445917,7.06,164.84,164.79,4.4905]
[1717413446121,7.06,164.83,164.79,4.4905]
[1717413446322,7.06,164.83,164.82,2.2448]
[1717413447320,7.06,164.83,164.78,36.35]
[1717413447521,7.06,164.82,164.81,2.2449]
[1717413447828,7.06,164.82,164.8,2.2451]
[1717413449024,2.2443,164.86,164.8,2.2451]
[1717413449238,7.06,164.82,164.8,2.2451]
[1717413451651,2.2443,164.86,164.81,2.245]
[1717413451827,7.06,164.83,164.81,2.245]
[1717413452029,6.2641,164.9,164.8,4.4902]
[1717413452241,7.06,164.85,164.84,2.2445]
[1717413452743,7.06,164.86,164.84,2.2445]
[1717413453540,7.06,164.85,164.84,2.2445]
[1717413454047,7.06,164.85,164.83,2.2446]
[1717413454237,2.2439,164.89,164.84,2.2445]
[1717413454439,7.06,164.86,164.84,2.2445]
[1717413454637,8.5079,164.9,164.85,2.2444]
[1717413454832,2.2438,164.9,164.85,2.2444]
[1717413455033,2.2436,164.91,164.86,2.2442]
[1717413455237,11.0416,164.94,164.82,65.6024]
[1717413455238,7.06,164.88,164.87,2.2441]
[1717413455443,2.2434,164.93,164.87,2.2441]
[1717413455647,7.06,164.89,164.87,2.2441]
[1717413455850,2.2434,164.93,164.87,2.2441]
[1717413456027,7.06,164.89,164.87,2.2441]
[1717413457053,2.2434,164.93,164.88,2.244]
[1717413457234,7.06,164.89,164.87,2.2441]
[1717413457550,7.06,164.9,164.87,2.2441]
[1717413458050,7.06,164.89,164.87,2.2441]
[1717413458247,2.2434,164.93,164.87,2.2441]
[1717413458455,7.06,164.89,164.87,2.2441]
[1717413459352,7.06,164.9,164.87,2.2441]
[1717413460339,2.2435,164.92,164.87,2.2441]
[1717413460549,7.06,164.9,164.87,2.2441]
[1717413461346,2.2434,164.93,164.87,2.2441]
[1717413461646,7.06,164.9,164.87,2.2441]
[1717413461837,2.2435,164.92,164.86,2.2443]
[1717413462027,7.06,164.88,164.86,2.2443]
[1717413464456,8.7983,164.94,164.88,2.244]
[1717413464754,7.06,164.89,164.87,2.2441]
[1717413467549,2.2434,164.93,164.88,2.244]
[1717413467743,7.06,164.9,164.88,2.244]
[1717413469554,2.2434,164.93,164.88,2.244]
[1717413469756,7.06,164.9,164.88,2.244]
[1717413470150,2.243,164.96,164.87,47.8982]
[1717413470451,7.06,164.92,164.9,2.2437]
[1717413470651,7.06,164.92,164.91,2.2436]
[1717413470957,7.06,164.93,164.91,2.2436]
[1717413472254,2.243,164.96,164.91,2.2436]
[1717413472436,7.06,164.93,164.91,2.2436]
[1717413473458,7.06,164.93,164.9,2.2437]
[1717413475651,7.06,164.93,164.91,2.2436]
[1717413476249,7.06,164.93,164.9,2.2437]
[1717413476562,2.243,164.96,164.9,2.2437]
[1717413476746,7.06,164.93,164.91,2.2436]
[1717413478569,2.2428,164.97,164.92,2.2434]
[1717413478779,7.06,164.94,164.92,47.2434]
[1717413479082,7.06,164.94,164.92,45.0]
[1717413480476,7.06,164.93,164.91,24.1691]
[1717413480778,7.06,164.92,164.91,2.2436]
[1717413481967,9.3029,164.96,164.91,2.2436]
[1717413482170,30.4829,164.96,164.91,2.2436]
[1717413483695,28.24,164.96,164.92,2.2435]
[1717413484353,7.06,164.93,164.92,2.2435]
[1717413485067,7.06,164.94,164.92,2.2435]
[1717413486462,2.2428,164.97,164.92,2.2435]
[1717413486663,7.06,164.94,164.92,23.9575]
[1717413486858,7.06,164.94,164.93,2.2433]
[1717413487576,7.06,164.94,164.93,4.29328104]
[1717413487873,7.06,164.94,164.93,2.04998104]
[1717413488171,2.2427,164.98,164.93,47.2433]
[1717413488352,2.2426,164.99,164.94,2.2432]
[1717413488680,2.2426,164.99,164.94,47.2432]
[1717413488969,2.2427,164.98,164.94,2.2432]
[1717413489305,2.2422,165.02,164.97,2.2428]
[1717413489450,7.06,164.98,164.97,2.2428]
[1717413489952,7.06,164.98,164.96,2.2429]
[1717413490146,2.2422,165.01,164.96,2.2429]
[1717413490376,7.06,164.97,164.96,2.2429]
[1717413490862,2.2421,165.02,164.97,2.2428]
[1717413491190,7.06,164.98,164.97,2.2428]
[1717413491880,7.06,164.98,164.96,17.6993]
[1717413492074,2.2423,165.01,164.97,45.0]
[1717413492374,7.06,164.98,164.97,45.0]
[1717413495964,7.06,164.98,164.97,47.2428]
[1717413498757,2.2421,165.02,164.97,47.2428]
[1717413498957,7.06,164.98,164.97,47.2428]
[1717413499373,2.2421,165.02,164.97,47.2428]
[1717413499593,261.342,165.03,164.98,2.2426]
[1717413499887,259.1,165.03,164.99,2.2425]
[1717413500087,7.06,165.0,164.99,2.2425]
[1717413500261,7.06,165.0,164.98,2.2426]
[1717413500459,7.06,164.99,164.98,2.2426]
[1717413500858,264.48674389,165.03,164.98,2.2426]
[1717413501085,7.06,164.99,164.98,2.2426]
[1717413501885,7.06,164.99,164.97,68.6836]
[1717413502278,7.06,165.0,164.98,2.2426]
[1717413502453,5.38674389,165.03,164.98,2.2426]
[1717413502658,7.06,165.0,164.98,23.6835]
[1717413502858,7.06,165.0,164.99,45.0]
[1717413504668,7.06,165.0,164.97,2.2428]
[1717413504893,2.2421,165.02,164.97,2.2428]
[1717413504894,7.06,164.98,164.97,2.2428]
[1717413508468,5.38674389,165.03,164.97,2.2428]
[1717413508668,7.06,164.99,164.97,2.2428]
[1717413508869,7.06,164.99,164.98,2.2426]
[1717413511289,7.06,164.99,164.93,44.6253]
[1717413511290,7.06,164.99,164.93,67.1854]
[1717413511477,7.06,164.99,164.96,2.2429]
[1717413512500,7.06,164.99,164.95,2.243]
[1717413513796,10.20474389,164.99,164.95,2.243]
[1717413515294,10.20474389,164.99,164.96,2.2429]
[1717413518088,7.06,164.98,164.97,2.2427]
[1717413518885,7.06,164.98,164.94,45.0]
[1717413518886,7.06,164.98,164.96,2.2429]
[1717413520669,7.06,164.97,164.96,2.2429]
[1717413522101,7.06,164.98,164.96,2.2429]
[1717413529688,7.06,164.97,164.96,2.2429]
[1717413530206,3.14474389,164.99,164.96,2.2429]
[1717413530410,7.06,164.97,164.96,2.2429]
[1717413530797,7.06,164.98,164.96,2.2429]
[1717413532109,2.2423,165.01,164.96,2.2429]
[1717413532311,7.06,164.98,164.96,2.2429]
[1717413532889,7.06,164.98,164.95,2.243]
[1717413533295,7.06,164.98,164.95,23.7055]
[1717413533507,7.06,164.98,164.96,45.0]
[1717413534384,2.2424,165.0,164.96,45.0]
[1717413534693,7.06,164.98,164.96,45.0]
[1717413534902,3.14474389,165.03,164.96,81.35]
[1717413535110,7.06,165.02,164.99,2.2425]
[1717413536316,2.2417,165.05,165.0,2.2424]
[1717413536613,7.06,165.02,165.0,2.2424]
[1717413537915,2.2417,165.05,165.0,2.2424]
[1717413538086,7.06,165.02,165.01,2.2422]
[1717413538287,3.14474389,165.09,165.01,2.2422]
[1717413538507,7.06,165.03,165.01,2.2422]
[1717413538697,7.06,165.02,165.01,2.2422]
[1717413539294,2.2416,165.06,165.01,2.2422]
[1717413539514,7.06,165.02,165.01,2.2422]
[1717413542904,7.06,165.02,165.0,2.2424]
[1717413543104,7.06,165.01,165.0,2.2424]
[1717413543315,28.24,165.04,165.0,2.2424]
[1717413545191,2.2417,165.05,165.0,2.2424]
[1717413545401,7.06,165.01,165.0,2.2424]
[1717413546394,7.06,165.02,165.01,2.2421]
[1717413546817,2.2416,165.06,165.02,2.2421]
[1717413547021,7.06,165.03,165.02,2.2421]
[1717413548997,7.06,165.03,165.01,2.2422]
[1717413549197,7.06,165.03,165.02,0.30925745]
[1717413550100,2.2416,165.06,165.02,0.30925745]
[1717413550299,7.06,165.03,165.02,0.30925745]
[1717413550921,2.2416,165.06,165.01,2.2422]
[1717413551195,7.06,165.03,165.01,2.2422]
[1717413552208,7.06,165.02,165.01,2.2422]
[1717413553235,7.06,165.03,165.01,2.2422]
[1717413553730,7.06,165.02,164.99,45.0]
[1717413553903,7.06,165.0,164.98,2.2426]
[1717413554104,7.06,165.0,164.97,20.0]
[1717413554303,7.06,164.99,164.98,2.2426]
[1717413554501,2.242,165.03,164.98,2.2426]
[1717413555117,30.4819,165.04,164.99,2.2425]
[1717413555624,2.2416,165.06,164.98,45.0]
[1717413555799,2.2416,165.06,164.99,22.7911]
[1717413556003,2.2416,165.06,165.01,2.2422]
[1717413556238,7.06,165.02,165.01,2.2422]
[1717413557811,7.06,165.02,165.0,47.2423]
[1717413559338,7.06,165.01,165.0,47.2423]
[1717413559912,2.2416,165.06,165.0,47.2423]
[1717413560240,7.06,165.01,165.0,47.2423]
[1717413561817,2.2416,165.06,165.0,47.2423]
[1717413562013,2.2415,165.07,165.0,45.0]
[1717413562217,7.06,165.04,165.01,22.3854]
[1717413562431,7.06,165.04,165.02,45.0]
[1717413562833,2.2413,165.08,165.03,2.242]
[1717413563027,7.06,165.04,165.02,47.2421]
[1717413563432,3.14474389,165.09,165.02,60.5082]
[1717413563639,3.14474389,165.09,165.02,96.8782]
[1717413563934,7.06,165.07,165.05,2.2416]
[1717413564134,7.06,165.06,165.05,2.2416]
[1717413564334,7.06,165.07,165.06,2.2416]
[1717413564637,7.06,165.07,165.05,2.2416]
[1717413564841,7.06,165.06,165.05,2.2416]
[1717413566432,7.06,165.06,165.0,36.37]
[1717413566622,2.2413,165.08,165.03,2.242]
[1717413566941,7.06,165.04,165.03,2.242]
[1717413567333,2.2413,165.08,165.03,2.242]
[1717413567529,7.06,165.04,165.03,2.242]
[1717413569746,2.2411,165.1,165.02,45.0]
[1717413569950,2.2411,165.1,165.05,2.2417]
[1717413570135,7.06,165.06,165.05,2.2417]
[1717413570821,28.24,165.12,165.02,81.37]
[1717413571035,2.2411,165.1,165.04,2.2417]
[1717413571419,2.2411,165.1,165.05,2.2417]
[1717413571636,7.06,165.06,165.05,2.2417]
[1717413572627,7.06,165.08,165.07,2.2413]
[1717413573232,28.24,165.12,165.07,2.2413]
[1717413573783,33.62554389,165.12,165.07,2.2413]
[1717413573949,7.06,165.08,165.07,2.2413]
[1717413574346,33.62554389,165.12,165.07,2.2413]
[1717413574518,7.06,165.08,165.07,2.2413]
[1717413574723,33.62554389,165.12,165.07,2.2413]
[1717413575034,7.06,165.08,165.07,2.2413]
[1717413575429,33.62554389,165.12,165.07,2.2413]
[1717413576129,33.62554389,165.12,165.06,45.0]
[1717413576130,31.38474389,165.12,165.08,2.2413]
[1717413576337,7.06,165.09,165.08,2.2413]
[1717413576523,7.06,165.09,165.07,2.2414]
[1717413576727,7.06,165.08,165.07,2.2414]
[1717413578249,33.62544389,165.12,165.07,2.2414]
[1717413578930,33.62544389,165.12,165.06,45.0]
[1717413579251,33.62544389,165.12,165.06,2.2415]
[1717413580065,5.38544389,165.12,165.06,2.2415]
[1717413580248,33.62544389,165.12,165.07,2.2414]
[1717413580431,7.06,165.08,165.07,2.2414]
[1717413582067,7.06,165.08,165.05,45.0]
[1717413582068,7.06,165.08,165.06,2.2415]
[1717413582362,7.06,165.07,165.06,2.2415]
[1717413584268,7.06,165.07,165.05,47.2417]
[1717413584575,7.06,165.06,165.05,47.2417]
[1717413588948,2.2409,165.11,165.06,2.2415]
[1717413589150,7.06,165.07,165.06,2.2415]
[1717413593568,2.2409,165.11,165.06,2.2415]
[1717413593866,7.06,165.07,165.06,2.2415]
[1717413597069,2.2409,165.11,165.06,2.2415]
[1717413597248,7.06,165.07,165.06,2.2415]
[1717413598157,7.06,165.07,165.05,47.2416]
[1717413598468,7.06,165.06,165.05,2.2416]
[1717413599170,7.06,165.06,165.04,47.2418]
[1717413599371,7.06,165.05,165.04,47.2418]
[1717413599874,2.241,165.11,165.06,2.2415]
[1717413600377,7.06,165.07,165.06,2.2415]
[1717413601249,2.2407,165.13,165.07,2.2413]
[1717413601453,7.06,165.08,165.07,2.2413]
[1717413602253,2.2407,165.13,165.08,2.2413]
[1717413602753,7.06,165.09,165.08,2.2413]
[1717413603367,2.2407,165.13,165.08,2.2413]
[1717413603591,7.06,165.09,165.08,2.2413]
[1717413604175,10.5467,165.19,165.06,36.37]
[1717413604399,2.2403,165.16,165.1,2.2409]
[1717413605052,2.2401,165.17,165.07,106.0228]
[1717413605250,6.0668,165.19,165.08,40.8525]
[1717413605466,7.06,165.12,165.09,66.724]
[1717413605891,7.06,165.12,165.1,2.241]
[1717413606054,7.06,165.11,165.1,2.241]
[1717413606678,7.06,165.12,165.1,2.241]
[1717413607256,2.24,165.18,165.12,2.2406]
[1717413608078,7.06,165.13,165.12,2.2406]
[1717413608551,2.2401,165.17,165.12,2.2406]
[1717413608752,7.06,165.14,165.12,2.2406]
[1717413609678,7.06,165.13,165.11,2.2408]
[1717413610562,7.06,165.12,165.11,2.2408]
[1717413611851,2.2401,165.17,165.11,2.2408]
[1717413612049,7.06,165.12,165.11,2.2408]
[1717413612660,2.2402,165.16,165.11,2.2408]
[1717413612864,7.06,165.12,165.11,2.2408]
[1717413615757,7.06,165.12,165.06,36.37]
[1717413616087,7.06,165.08,165.07,20.0]
[1717413616484,7.06,165.12,165.1,2.241]
[1717413616659,7.06,165.11,165.1,2.241]
[1717413618083,7.06,165.11,165.07,20.0]
[1717413618290,7.06,165.11,165.1,2.241]
[1717413618493,2.2402,165.16,165.1,2.241]
[1717413618813,7.06,165.11,165.08,45.0]
[1717413618965,7.06,165.11,165.1,2.241]
[1717413619166,2.2402,165.16,165.11,2.2409]
[1717413619375,7.06,165.12,165.11,2.2409]
[1717413620386,7.06,165.12,165.1,2.241]
[1717413620965,7.06,165.11,165.1,2.241]
[1717413622693,2.2403,165.15,165.1,2.241]
[1717413622694,8.3496,165.15,165.1,2.241]
[1717413622874,7.06,165.11,165.1,2.241]
[1717413624791,7.06,165.11,165.09,2.2411]
[1717413624990,7.06,165.1,165.08,47.2413]
[1717413625293,7.06,165.09,165.08,47.2413]
[1717413625981,7.06,165.09,165.08,2.2413]
[1717413626565,7.06,165.09,165.07,2.2414]
[1717413626782,7.06,165.08,165.07,2.2414]
[1717413627177,2.2405,165.14,165.09,2.2411]
[1717413627579,6.1093,165.15,165.09,2.2411]
[1717413627783,8.3497,165.15,165.1,2.241]
[1717413627985,7.06,165.11,165.1,2.241]
[1717413628360,34.4175,165.2,165.08,40.8525]
[1717413628588,2.24,165.18,165.12,2.2407]
[1717413628799,7.06,165.13,165.12,2.2407]
[1717413631702,7.06,165.13,165.11,2.2408]
[1717413631874,7.06,165.12,165.11,2.2408]
[1717413635401,34.4175,165.2,165.13,2.2406]
[1717413635588,7.06,165.14,165.13,2.2406]
[1717413636588,7.06,165.14,165.12,2.2407]
[1717413636890,34.4175,165.2,165.13,2.2405]
[1717413637093,7.06,165.14,165.13,2.2405]
[1717413637478,34.4175,165.2,165.15,2.2403]
[1717413637680,7.06,165.16,165.15,2.2403]
[1717413639182,30.4797,165.2,165.15,2.2403]
[1717413639410,7.06,165.16,165.15,2.2403]
[1717413642505,30.4797,165.2,165.15,2.2403]
[1717413642686,7.06,165.16,165.15,2.2403]
[1717413643410,2.2396,165.21,165.16,2.2402]
[1717413643593,7.06,165.17,165.16,2.2402]
[1717413644087,7.06,165.17,165.15,2.2403]
[1717413644287,28.24,165.2,165.15,2.2403]
[1717413644596,7.06,165.16,165.15,2.2403]
[1717413646708,7.06,165.16,165.12,20.0]
[1717413646910,7.06,165.13,165.12,22.2407]